bitfinex/quotes_SOLUSD_20241127
["timestamp","ask_amount","ask_price","bid_price","bid_amount"]
[1732744054662,20.0,240.28,240.21,8.40406228]
[1732744054864,23.776884,240.27,240.21,8.40406228]
[1732744058068,23.776884,240.27,240.21,0.4163024]
[1732744058279,23.776884,240.27,240.21,8.40406228]
[1732744059958,23.776884,240.27,240.21,0.4163024]
[1732744060160,23.776884,240.28,240.21,0.4163024]
[1732744061073,23.776884,240.3,240.22,7.98775988]
[1732744061380,23.776884,240.3,240.24,7.98775988]
[1732744061672,7.98775988,240.3,240.22,7.98775988]
[1732744061895,23.776884,240.29,240.22,7.98775988]
[1732744062894,23.776884,240.29,240.21,0.4163024]
[1732744063071,23.776884,240.29,240.22,7.98775988]
[1732744063883,27.98775988,240.31,240.22,7.98775988]
[1732744064050,20.0,240.31,240.22,7.98775988]
[1732744064253,27.98775988,240.31,240.22,7.98775988]
[1732744066782,7.98775988,240.29,240.22,7.98775988]
[1732744068673,27.98775988,240.31,240.22,7.98775988]
[1732744069192,7.98775988,240.29,240.21,8.40406228]
[1732744070570,7.98775988,240.29,240.21,0.4163024]
[1732744070764,7.98775988,240.29,240.21,8.40406228]
[1732744071890,7.98775988,240.29,240.22,7.98775988]
[1732744072257,27.98775988,240.31,240.22,7.98775988]
[1732744075089,27.98775988,240.31,240.21,0.4163024]
[1732744075288,27.98775988,240.31,240.21,8.40406228]
[1732744076172,27.98775988,240.31,240.23,7.98775988]
[1732744079797,20.0,240.31,240.25,7.98775988]
[1732744080178,23.776884,240.39,240.27,7.98775988]
[1732744080407,27.98775988,240.36,240.27,7.98775988]
[1732744081280,7.98775988,240.34,240.27,7.98775988]
[1732744082389,7.98775988,240.34,240.26,7.98775988]
[1732744082591,31.76464388,240.36,240.26,7.98775988]
[1732744082993,20.0,240.33,240.26,7.98775988]
[1732744084075,20.0,240.33,240.23,6.5185]
[1732744084298,20.0,240.33,240.26,7.98775988]
[1732744085595,31.76464388,240.36,240.28,7.98775988]
[1732744086109,23.776884,240.36,240.28,7.98775988]
[1732744086401,23.776884,240.37,240.28,7.98775988]
[1732744087209,23.776884,240.38,240.24,88.44366559]
[1732744087498,23.776884,240.38,240.3,7.98775988]
[1732744090478,31.76464388,240.38,240.3,7.98775988]
[1732744093316,31.76464388,240.38,240.26,4.162]
[1732744093485,31.76464388,240.38,240.3,7.98775988]
[1732744094002,23.776884,240.38,240.32,7.98775988]
[1732744094192,7.98775988,240.4,240.32,7.98775988]
[1732744094507,6.6591,240.45,240.32,7.98775988]
[1732744094711,43.776884,240.42,240.34,7.98775988]
[1732744094877,7.98775988,240.4,240.32,7.98775988]
[1732744095721,27.98775988,240.42,240.34,7.98775988]
[1732744096387,8.36192569,240.47,240.38,7.98775988]
[1732744096592,7.98775988,240.46,240.38,7.98775988]
[1732744097512,16.34968557,240.47,240.38,7.98775988]
[1732744097708,8.36192569,240.47,240.38,7.98775988]
[1732744098006,16.34968557,240.47,240.4,7.98775988]
[1732744098207,8.36192569,240.47,240.4,7.98775988]
[1732744098612,8.36192569,240.47,240.42,7.98775988]
[1732744098814,16.4913,240.56,240.42,7.98775988]
[1732744099110,16.4913,240.56,240.44,7.98775988]
[1732744099290,7.98775988,240.54,240.46,7.98775988]
[1732744100013,16.4913,240.56,240.46,7.98775988]
[1732744100180,7.98775988,240.54,240.46,7.98775988]
[1732744100992,7.98775988,240.54,240.43,4.1592]
[1732744101180,7.98775988,240.54,240.46,7.98775988]
[1732744102591,7.98775988,240.56,240.46,7.98775988]
[1732744102794,23.776884,240.55,240.46,7.98775988]
[1732744103607,23.776884,240.55,240.42,58.0184]
[1732744103808,23.776884,240.49,240.37,72.0908]
[1732744104114,23.776884,240.49,240.4,7.98775988]
[1732744105392,23.776884,240.49,240.42,7.98775988]
[1732744106482,23.776884,240.49,240.38,4.16]
[1732744106891,23.776884,240.49,240.42,7.98775988]
[1732744109011,23.776884,240.5,240.42,7.98775988]
[1732744109193,7.98775988,240.47,240.39,7.98775988]
[1732744109712,27.98775988,240.49,240.41,7.98775988]
[1732744109902,27.98775988,240.49,240.4,7.98775988]
[1732744110208,7.98775988,240.47,240.37,16.4306]
[1732744110414,7.98775988,240.45,240.37,16.4306]
[1732744110784,7.98775988,240.45,240.38,7.98775988]
[1732744110988,23.776884,240.46,240.4,7.98775988]
[1732744111490,7.98775988,240.52,240.42,7.98775988]
[1732744111691,23.776884,240.51,240.42,7.98775988]
[1732744112104,23.776884,240.51,240.44,7.98775988]
[1732744114197,7.98775988,240.5,240.44,7.98775988]
[1732744114515,7.98775988,240.45,240.31,15.7307]
[1732744114695,7.98775988,240.43,240.34,7.98775988]
[1732744116113,7.98775988,240.43,240.32,4.161]
[1732744116302,7.98775988,240.43,240.35,7.98775988]
[1732744116611,7.98775988,240.43,240.34,7.98775988]
[1732744119121,7.98775988,240.49,240.41,7.98775988]
[1732744120513,23.776884,240.48,240.41,7.98775988]
[1732744121213,20.0,240.5,240.43,7.98775988]
[1732744121422,23.776884,240.49,240.43,7.98775988]
[1732744122420,23.776884,240.49,240.4,16.5399]
[1732744122722,7.98775988,240.49,240.41,7.98775988]
[1732744125303,20.0,240.54,240.43,7.98775988]
[1732744125508,7.98775988,240.52,240.43,7.98775988]
[1732744127427,20.0,240.54,240.4,16.5399]
[1732744127428,20.0,240.47,240.4,16.5399]
[1732744127615,20.0,240.47,240.4,24.52765988]
[1732744129904,7.98775988,240.48,240.4,24.52765988]
[1732744131434,7.98775988,240.48,240.4,16.5399]
[1732744131936,7.98775988,240.48,240.4,24.52765988]
[1732744138840,7.98775988,240.48,240.4,24.52765988]
[1732744141737,7.98775988,240.48,240.4,16.5399]
[1732744142237,7.98775988,240.48,240.4,24.52765988]
[1732744142616,23.776884,240.56,240.4,24.52765988]
[1732744142815,7.98775988,240.49,240.4,24.52765988]
[1732744143736,23.776884,240.48,240.4,24.52765988]
[1732744144433,7.98775988,240.47,240.4,16.5399]
[1732744144734,7.98775988,240.45,240.4,16.5399]
[1732744144934,7.98775988,240.47,240.4,16.5399]
[1732744147034,31.76464388,240.43,240.34,15.2605]
[1732744147241,7.98775988,240.41,240.34,15.2605]
[1732744147951,7.98775988,240.39,240.34,15.2605]
[1732744149254,7.98775988,240.41,240.34,15.2605]
[1732744151559,20.0,240.4,240.34,15.2605]
[1732744151737,7.98775988,240.37,240.28,15.6046]
[1732744151936,7.98775988,240.37,240.28,23.59235988]
[1732744152157,23.776884,240.39,240.3,7.98775988]
[1732744152341,7.98775988,240.38,240.3,7.98775988]
[1732744154358,7.98775988,240.38,240.28,23.59235988]
[1732744154555,7.98775988,240.36,240.28,23.59235988]
[1732744154763,27.98775988,240.36,240.28,23.59235988]
[1732744155661,7.98775988,240.34,240.28,15.6046]
[1732744156143,7.98775988,240.31,240.28,15.6046]
[1732744156550,7.98775988,240.31,240.23,24.62115988]
[1732744156937,7.98775988,240.31,240.23,16.6334]
[1732744157162,23.776884,240.35,240.23,16.6334]
[1732744157163,7.98775988,240.27,240.23,16.6334]
[1732744157472,7.98775988,240.26,240.19,7.98775988]
[1732744158239,27.98775988,240.28,240.19,7.98775988]
[1732744159346,27.98775988,240.28,240.17,16.6334]
[1732744159535,7.98775988,240.26,240.18,7.98775988]
[1732744160559,7.98775988,240.22,240.17,16.6334]
[1732744160938,7.98775988,240.22,240.13,7.98775988]
[1732744161763,7.98775988,240.22,240.15,7.98775988]
[1732744162345,7.98775988,240.22,240.14,7.98775988]
[1732744163062,43.776884,240.27,240.14,7.98775988]
[1732744163362,7.98775988,240.22,240.12,24.62115988]
[1732744164951,31.76464388,240.22,240.12,24.62115988]
[1732744165268,31.76464388,240.22,240.12,16.6334]
[1732744168004,48.39804388,240.22,240.12,16.6334]
[1732744175755,40.410284,240.22,240.12,24.62115988]
[1732744175964,7.98775988,240.23,240.14,7.98775988]
[1732744177770,23.776884,240.22,240.12,16.6334]
[1732744184970,25.40695148,240.22,240.12,16.6334]
[1732744186181,23.776884,240.18,240.1,0.4752805]
[1732744186484,7.98775988,240.11,240.1,0.4752805]
[1732744187272,31.76464388,240.11,240.1,0.4752805]
[1732744188174,23.776884,240.11,240.1,0.4752805]
[1732744192873,20.0,240.08,239.94,75.03975988]
[1732744193071,27.98775988,240.04,239.96,7.98775988]
[1732744193387,7.98775988,240.03,239.96,7.98775988]
[1732744193583,7.98775988,240.02,239.94,67.052]
[1732744193765,7.98775988,240.03,239.96,7.98775988]
[1732744194997,7.98775988,240.02,239.94,67.052]
[1732744195195,7.98775988,240.02,239.95,7.98775988]
[1732744195374,7.98775988,240.03,239.96,7.98775988]
[1732744196286,27.98775988,240.04,239.97,7.98775988]
[1732744197192,7.98775988,240.03,239.96,7.98775988]
[1732744200281,7.98775988,240.03,239.95,7.98775988]
[1732744200486,27.98775988,240.04,239.97,7.98775988]
[1732744200693,7.98775988,240.06,239.99,7.98775988]
[1732744201299,7.98775988,240.04,239.97,7.98775988]
[1732744201796,7.98775988,240.06,239.98,7.98775988]
[1732744202003,7.98775988,240.04,239.94,67.052]
[1732744202212,7.98775988,240.01,239.94,15.552]
[1732744202372,7.98775988,239.99,239.94,15.552]
[1732744204802,7.98775988,239.97,239.89,7.98775988]
[1732744206290,7.98775988,239.97,239.89,7.98775988]
[1732744207808,6.4350498,240.25,239.86,51.9752805]
[1732744207809,7.98775988,239.9,239.86,0.4752805]
[1732744208008,20.0,239.94,239.86,0.4752805]
[1732744208009,7.98775988,239.87,239.86,0.4752805]
[1732744212901,23.776884,239.92,239.86,0.4752805]
[1732744213105,7.98775988,239.87,239.86,0.4752805]
[1732744213306,7.98775988,239.88,239.86,0.4752805]
[1732744213508,20.0,239.94,239.86,0.4752805]
[1732744213695,7.98775988,239.89,239.86,0.4752805]
[1732744213900,7.98775988,239.87,239.86,0.4752805]
[1732744214301,20.0,239.95,239.86,0.4752805]
[1732744214509,7.98775988,239.88,239.86,0.4752805]
[1732744216406,7.98775988,239.87,239.86,0.4752805]
[1732744217409,23.776884,239.94,239.86,0.4752805]
[1732744217597,7.98775988,239.87,239.86,0.4752805]
[1732744231707,16.691941,239.89,239.86,0.4752805]
[1732744231922,7.98775988,239.87,239.86,0.4752805]
[1732744238938,20.0,239.87,239.86,0.4752805]
[1732744239245,27.98775988,239.87,239.86,0.4752805]
[1732744239440,20.0,239.87,239.86,0.4752805]
[1732744239748,16.69153,239.9,239.86,0.4752805]
[1732744240040,7.98775988,239.9,239.86,0.4752805]
[1732744240623,7.98775988,239.91,239.86,0.4752805]
[1732744242028,15.1574,239.94,239.86,0.4752805]
[1732744242233,7.98775988,239.93,239.86,0.4752805]
[1732744242617,16.687991,239.98,239.88,7.98775988]
[1732744242843,7.98775988,239.95,239.88,7.98775988]
[1732744243826,7.98775988,239.97,239.89,7.98775988]
[1732744244022,16.685883,239.99,239.91,7.98775988]
[1732744244226,7.98775988,239.99,239.92,7.98775988]
[1732744244440,7.98775988,239.98,239.91,7.98775988]
[1732744247043,7.98775988,240.01,239.93,7.98775988]
[1732744247839,7.98775988,239.97,239.92,22.5551]
[1732744249341,7.98775988,239.97,239.89,7.98775988]
[1732744249648,20.0,240.0,239.89,7.98775988]
[1732744249831,7.98775988,239.98,239.89,7.98775988]
[1732744250230,16.68302,240.03,239.91,7.98775988]
[1732744250458,7.98775988,240.0,239.91,59.48775988]
[1732744250748,7.98775988,240.0,239.93,7.98775988]
[1732744250957,7.98775988,240.03,239.95,7.98775988]
[1732744251651,7.98775988,240.03,239.95,23.89635988]
[1732744255926,7.98775988,240.05,239.97,7.98775988]
[1732744256332,8.51692646,240.09,239.97,7.98775988]
[1732744256530,7.98775988,240.07,239.97,7.98775988]
[1732744257629,7.98775988,240.05,239.97,7.98775988]
[1732744258149,7.98775988,240.05,239.95,75.39635988]
[1732744259252,7.98775988,240.02,239.95,75.39635988]
[1732744260353,7.98775988,240.0,239.95,67.4086]
[1732744262759,7.98775988,239.98,239.95,15.9086]
[1732744262941,7.98775988,239.98,239.9,16.1182]
[1732744265041,7.98775988,239.97,239.9,67.6182]
[1732744267253,20.0,240.04,239.9,67.6182]
[1732744267440,7.98775988,239.96,239.9,67.6182]
[1732744270763,20.0,240.04,239.9,67.6182]
[1732744270965,7.98775988,239.97,239.9,67.6182]
[1732744272461,20.0,240.04,239.9,67.6182]
[1732744272670,7.98775988,239.97,239.9,67.6182]
[1732744275955,30.330184,240.07,239.91,7.98775988]
[1732744276163,7.98775988,240.0,239.93,59.48775988]
[1732744277273,7.98775988,240.0,239.93,51.5]
[1732744281671,20.0,240.04,239.93,51.5]
[1732744281849,7.98775988,240.0,239.93,51.5]
[1732744293876,8.51692646,240.09,239.98,7.98775988]
[1732744294088,7.98775988,240.05,239.99,16.5158]
[1732744298564,7.98775988,240.05,239.99,68.0158]
[1732744299382,7.98775988,240.03,239.99,68.0158]
[1732744301793,20.0,240.09,239.99,68.0158]
[1732744302274,7.98775988,240.04,239.99,68.0158]
[1732744303291,7.98775988,240.06,239.99,68.0158]
[1732744304168,7.98775988,240.02,239.99,68.0158]
[1732744307181,20.0,240.09,239.99,68.0158]
[1732744307182,7.98775988,240.01,239.99,68.0158]
[1732744310290,7.98775988,240.01,239.99,51.5]
[1732744310493,20.0,240.05,239.93,67.2462]
[1732744310694,23.776884,240.08,239.93,67.2462]
[1732744310695,7.98775988,239.96,239.93,67.2462]
[1732744314280,7.98775988,239.96,239.93,51.5]
[1732744316197,7.98775988,239.96,239.89,7.98775988]
[1732744316198,7.98775988,239.96,239.89,51.5]
[1732744321593,7.98775988,239.98,239.9,59.48775988]
[1732744321792,7.98775988,239.98,239.9,51.5]
[1732744323910,7.98775988,239.96,239.9,51.5]
[1732744326387,7.98775988,239.98,239.9,51.5]
[1732744328180,6.98775988,239.98,239.9,51.5]
[1732744328385,15.6181,240.06,239.89,7.98775988]
[1732744328386,7.98775988,239.96,239.89,59.48775988]
[1732744330222,7.98775988,239.9,239.86,0.4752805]
[1732744331112,15.6765,239.98,239.86,0.4752805]
[1732744331286,20.0,239.95,239.86,0.4752805]
[1732744331612,27.98775988,239.95,239.86,59.96304038]
[1732744331994,27.98775988,239.95,239.88,7.98775988]
[1732744332516,15.6765,239.98,239.88,8.8191824]
[1732744332517,7.98775988,239.97,239.88,8.8191824]
[1732744332702,7.98775988,239.97,239.88,52.33142252]
[1732744332910,7.98775988,239.97,239.89,7.98775988]
[1732744333197,7.98775988,239.97,239.88,52.33142252]
[1732744333198,7.98775988,239.97,239.9,0.83132279]
[1732744336114,7.98775988,239.97,239.88,51.5]
[1732744336419,7.98775988,239.95,239.88,51.5]
[1732744336919,20.0,239.99,239.91,7.98775988]
[1732744337091,7.98775988,240.01,239.93,59.48775988]
[1732744337296,15.0856,240.04,239.94,0.83115091]
[1732744337494,7.98775988,240.01,239.94,51.5]
[1732744338198,7.98775988,239.99,239.94,51.5]
[1732744338393,7.98775988,239.99,239.9,7.98775988]
[1732744339508,7.98775988,239.97,239.88,52.33120003]
[1732744339719,7.98775988,239.97,239.89,7.98775988]
[1732744340519,7.98775988,239.99,239.89,7.98775988]
[1732744341509,7.98775988,240.01,239.93,7.98775988]
[1732744341896,15.0856,240.04,239.93,7.98775988]
[1732744342099,7.98775988,240.01,239.93,7.98775988]
[1732744343220,7.98775988,239.95,239.9,51.5]
[1732744344715,7.98775988,239.97,239.9,59.48775988]
[1732744345703,7.98775988,239.97,239.9,51.5]
[1732744348226,20.0,240.01,239.9,51.5]
[1732744348227,7.98775988,239.93,239.9,51.5]
[1732744349602,20.0,240.01,239.87,31.76464388]
[1732744349911,7.98775988,239.95,239.87,31.76464388]
[1732744350225,31.95103952,240.0,239.87,31.76464388]
[1732744350522,20.0,240.01,239.87,83.26464388]
[1732744350707,7.98775988,239.94,239.87,83.26464388]
[1732744355228,7.98775988,239.94,239.87,59.48775988]
[1732744355825,20.0,240.01,239.87,59.48775988]
[1732744356025,15.0856,240.04,239.87,59.48775988]
[1732744356221,7.98775988,239.99,239.91,7.98775988]
[1732744356408,7.98775988,239.99,239.91,59.48775988]
[1732744356917,7.98775988,239.97,239.91,51.5]
[1732744357518,7.98775988,239.95,239.91,51.5]
[1732744358029,7.98775988,239.93,239.87,51.5]
[1732744358233,7.98775988,239.93,239.86,51.9752805]
[1732744361608,7.98775988,239.93,239.86,0.4752805]
[1732744362130,38.28883952,240.0,239.86,8.46304038]
[1732744362315,7.98775988,239.96,239.88,7.98775988]
[1732744363158,7.98775988,239.96,239.86,0.4752805]
[1732744363324,7.98775988,239.96,239.88,7.98775988]
[1732744369023,7.98775988,239.94,239.86,59.96304038]
[1732744369219,7.98775988,239.94,239.86,51.9752805]
[1732744369434,15.1984,239.95,239.86,51.9752805]
[1732744369739,7.98775988,239.92,239.86,51.9752805]
[1732744372442,7.98775988,239.87,239.86,0.4752805]
[1732744373341,6.6601,239.92,239.86,0.4752805]
[1732744373342,7.98775988,239.88,239.86,0.4752805]
[1732744374038,23.350546,239.92,239.86,0.4752805]
[1732744374229,15.1984,239.95,239.86,0.4752805]
[1732744374449,7.98775988,239.91,239.86,0.4752805]
[1732744374947,15.1984,239.95,239.86,0.4752805]
[1732744374948,7.98775988,239.92,239.86,0.4752805]
[1732744375543,15.1984,239.95,239.86,0.4752805]
[1732744375749,7.98775988,239.92,239.86,0.4752805]
[1732744376946,7.98775988,239.94,239.86,8.46304038]
[1732744377249,15.1984,239.95,239.86,8.46304038]
[1732744377250,7.98775988,239.93,239.86,0.4752805]
[1732744377457,7.98775988,239.92,239.86,0.4752805]
[1732744378256,7.98775988,239.9,239.86,0.4752805]
[1732744378556,7.98775988,239.89,239.86,0.4752805]
[1732744380129,7.98775988,239.88,239.86,0.4752805]
[1732744383350,23.776884,239.93,239.86,0.4752805]
[1732744383555,7.98775988,239.89,239.86,0.4752805]
[1732744383729,15.1645,239.94,239.86,0.4752805]
[1732744383935,7.98775988,239.9,239.86,0.4752805]
[1732744388865,6.2253,239.96,239.86,0.4752805]
[1732744389161,7.98775988,239.93,239.86,0.4752805]
[1732744389947,7.98775988,239.91,239.86,0.4752805]
[1732744391665,20.0,239.96,239.86,0.4752805]
[1732744391872,7.98775988,239.92,239.86,0.4752805]
[1732744393273,7.98775988,239.94,239.86,8.46304038]
[1732744396768,7.98775988,239.93,239.86,8.46304038]
[1732744397476,7.98775988,239.93,239.86,0.4752805]
[1732744400568,7.98775988,239.94,239.86,51.9752805]
[1732744401363,7.98775988,239.92,239.86,51.9752805]
[1732744401867,7.98775988,239.93,239.86,51.9752805]
[1732744402663,7.98775988,239.91,239.86,51.9752805]
[1732744403651,7.98775988,239.91,239.86,0.4752805]
[1732744410770,7.98775988,239.95,239.86,8.46304038]
[1732744410960,20.0,239.97,239.88,7.98775988]
[1732744411169,7.98775988,239.97,239.88,7.98775988]
[1732744413771,7.98775988,239.95,239.88,7.98775988]
[1732744413978,7.98775988,239.91,239.86,51.9752805]
[1732744414272,7.98775988,239.91,239.86,0.4752805]
[1732744414974,6.48775988,239.91,239.86,0.4752805]
[1732744415481,20.0,239.97,239.86,0.4752805]
[1732744415665,7.98775988,239.91,239.86,0.4752805]
[1732744415865,20.0,239.97,239.86,0.4752805]
[1732744416175,7.98775988,239.91,239.86,0.4752805]
[1732744417377,7.98775988,239.89,239.86,0.4752805]
[1732744417880,7.98775988,239.91,239.86,0.4752805]
[1732744418373,7.98775988,239.89,239.86,0.4752805]
[1732744418778,7.98775988,239.9,239.86,0.4752805]
[1732744420186,7.98775988,239.92,239.86,0.4752805]
[1732744422987,16.5905,240.0,239.87,7.98775988]
[1732744423159,7.98775988,239.94,239.86,51.9752805]
[1732744423480,48.54153952,240.0,239.86,51.9752805]
[1732744423481,16.5905,240.0,239.87,7.98775988]
[1732744423684,7.98775988,239.97,239.89,7.98775988]
[1732744425961,20.0,239.99,239.89,7.98775988]
[1732744426158,7.98775988,239.96,239.89,7.98775988]
[1732744426573,20.0,239.99,239.89,7.98775988]
[1732744426770,7.98775988,239.97,239.89,7.98775988]
[1732744428291,8.51928022,240.03,239.89,7.98775988]
[1732744428498,7.98775988,239.98,239.91,7.98775988]
[1732744429297,8.51928022,240.03,239.94,7.98775988]
[1732744429593,7.98775988,240.02,239.94,7.98775988]
[1732744430090,7.98775988,240.0,239.93,7.98775988]
[1732744431190,8.51928022,240.03,239.92,67.9996]
[1732744431496,7.98775988,239.97,239.92,67.9996]
[1732744431685,7.98775988,239.99,239.92,67.9996]
[1732744434094,7.98775988,239.95,239.92,16.4996]
[1732744434299,7.98775988,239.95,239.87,73.2544]
[1732744434593,7.98775988,239.95,239.88,7.98775988]
[1732744435879,7.98775988,239.95,239.87,73.2544]
[1732744436191,7.98775988,239.93,239.87,81.24215988]
[1732744436792,7.98775988,239.93,239.87,73.2544]
[1732744438067,7.98775988,239.91,239.87,21.7544]
[1732744438271,7.98775988,239.91,239.87,15.43]
[1732744443596,20.0,239.97,239.87,15.43]
[1732744443797,23.776884,239.99,239.87,15.43]
[1732744444000,20.0,239.96,239.86,0.4752805]
[1732744444402,7.98775988,239.89,239.86,0.4752805]
[1732744444885,7.98775988,239.87,239.86,0.4752805]
[1732744449102,31.76464388,239.87,239.73,51.5]
[1732744449402,31.76464388,239.87,239.62,0.4752805]
[1732744449403,7.98775988,239.77,239.69,7.98775988]
[1732744449615,7.98775988,239.73,239.69,51.5]
[1732744449796,7.98775988,239.74,239.68,16.564]
[1732744450001,7.98775988,239.75,239.68,16.564]
[1732744450418,7.98775988,239.72,239.62,51.9752805]
[1732744450620,35.2747,239.83,239.62,51.9752805]
[1732744450621,7.98775988,239.68,239.62,0.4752805]
[1732744450914,7.98775988,239.69,239.62,8.46304038]
[1732744451097,7.98775988,239.69,239.62,0.4752805]
[1732744451898,7.98775988,239.69,239.62,8.46304038]
[1732744452098,23.776884,239.75,239.63,7.98775988]
[1732744452303,7.98775988,239.7,239.63,7.98775988]
[1732744453494,7.98775988,239.69,239.62,0.4752805]
[1732744453994,7.98775988,239.67,239.62,0.4752805]
[1732744454815,7.98775988,239.64,239.62,0.4752805]
[1732744455402,7.98775988,239.63,239.62,0.4752805]
[1732744455596,7.98775988,239.64,239.62,0.4752805]
[1732744456210,7.98775988,239.65,239.62,0.4752805]
[1732744456595,16.3559,239.71,239.62,0.4752805]
[1732744456812,7.98775988,239.67,239.62,0.4752805]
[1732744457194,7.98775988,239.68,239.62,0.4752805]
[1732744457613,7.98775988,239.69,239.62,0.4752805]
[1732744457798,6.07,239.73,239.62,0.4752805]
[1732744458001,7.98775988,239.7,239.62,8.46304038]
[1732744462413,7.98775988,239.68,239.62,0.4752805]
[1732744463225,7.98775988,239.71,239.62,8.46304038]
[1732744464729,7.98775988,239.7,239.63,7.98775988]
[1732744464913,7.98775988,239.7,239.62,0.4752805]
[1732744465118,7.98775988,239.7,239.63,7.98775988]
[1732744467112,7.98775988,239.69,239.62,8.46304038]
[1732744467733,7.98775988,239.69,239.62,0.4752805]
[1732744468033,7.98775988,239.69,239.62,8.46304038]
[1732744468528,7.98775988,239.7,239.63,7.98775988]
[1732744469125,48.17493952,239.76,239.63,7.98775988]
[1732744469126,7.98775988,239.71,239.63,7.98775988]
[1732744469728,16.0123,239.82,239.67,7.98775988]
[1732744470031,16.0123,239.82,239.63,7.98775988]
[1732744470032,7.98775988,239.72,239.63,7.98775988]
[1732744470413,16.0123,239.82,239.63,7.98775988]
[1732744470616,7.98775988,239.71,239.63,7.98775988]
[1732744470833,7.98775988,239.72,239.64,7.98775988]
[1732744471015,7.98775988,239.72,239.64,59.48775988]
[1732744471213,7.98775988,239.73,239.65,57.7583]
[1732744471616,7.98775988,239.71,239.65,6.2583]
[1732744472050,7.98775988,239.66,239.64,51.5]
[1732744472219,7.98775988,239.66,239.62,51.9752805]
[1732744475835,7.98775988,239.66,239.62,0.4752805]
[1732744476740,7.98775988,239.68,239.62,0.4752805]
[1732744477916,7.98775988,239.69,239.62,0.4752805]
[1732744479441,7.98775988,239.75,239.68,7.98775988]
[1732744479642,7.98775988,239.76,239.69,7.98775988]
[1732744480330,7.98775988,239.76,239.68,7.98775988]
[1732744480631,16.0123,239.82,239.69,7.98775988]
[1732744480632,7.98775988,239.77,239.69,7.98775988]
[1732744481241,7.98775988,239.8,239.71,7.98775988]
[1732744482340,15.6722,239.87,239.71,59.48775988]
[1732744482523,7.98775988,239.8,239.71,59.48775988]
[1732744483265,7.98775988,239.8,239.71,51.5]
[1732744483423,7.98775988,239.8,239.71,59.48775988]
[1732744484024,7.98775988,239.8,239.71,51.5]
[1732744484330,7.98775988,239.8,239.71,59.48775988]
[1732744485040,7.98775988,239.78,239.71,51.5]
[1732744485242,7.98775988,239.76,239.71,51.5]
[1732744487047,7.98775988,239.74,239.69,6.1772]
[1732744487422,20.0,239.82,239.67,51.5]
[1732744487627,7.98775988,239.72,239.67,51.5]
[1732744488052,23.776884,239.81,239.63,82.00015988]
[1732744488230,7.98775988,239.72,239.63,82.00015988]
[1732744488434,7.98775988,239.73,239.65,59.48775988]
[1732744489252,7.98775988,239.71,239.65,51.5]
[1732744490231,7.98775988,239.71,239.65,59.48775988]
[1732744490564,7.98775988,239.71,239.65,51.5]
[1732744490849,7.98775988,239.72,239.65,59.48775988]
[1732744491628,7.98775988,239.73,239.65,59.48775988]
[1732744492132,7.98775988,239.71,239.63,82.00015988]
[1732744493951,7.98775988,239.72,239.64,59.48775988]
[1732744494739,21.60855761,239.82,239.68,7.98775988]
[1732744494937,7.98775988,239.79,239.7,7.98775988]
[1732744495834,7.98775988,239.76,239.68,59.48775988]
[1732744496234,7.98775988,239.77,239.69,59.48775988]
[1732744497656,7.98775988,239.75,239.69,51.5]
[1732744498050,5.0,239.86,239.65,7.98775988]
[1732744498051,7.98775988,239.73,239.65,7.98775988]
[1732744499355,7.98775988,239.73,239.64,23.776884]
[1732744499543,7.98775988,239.73,239.64,31.76464388]
[1732744499857,7.98775988,239.71,239.63,82.00015988]
[1732744500042,7.98775988,239.73,239.65,7.98775988]
[1732744500240,20.0,239.8,239.67,7.98775988]
[1732744500451,7.98775988,239.76,239.68,7.98775988]
[1732744501337,23.776884,239.86,239.64,80.276884]
[1732744501559,7.98775988,239.77,239.69,59.48775988]
[1732744502153,15.6722,239.87,239.71,59.48775988]
[1732744502352,7.98775988,239.79,239.71,59.48775988]
[1732744502844,12.36164109,239.85,239.71,59.48775988]
[1732744503032,12.36164109,239.85,239.76,7.98775988]
[1732744503237,7.98775988,239.8,239.72,72.7416]
[1732744503462,7.98775988,239.8,239.72,80.72935988]
[1732744506041,7.98775988,239.8,239.72,72.7416]
[1732744506263,7.98775988,239.8,239.72,80.72935988]
[1732744506465,7.98775988,239.8,239.74,7.98775988]
[1732744506645,7.98775988,239.82,239.74,7.98775988]
[1732744506969,15.6722,239.87,239.72,72.7416]
[1732744506970,7.98775988,239.78,239.72,72.7416]
[1732744507140,15.6722,239.87,239.75,7.98775988]
[1732744507335,7.98775988,239.83,239.75,7.98775988]
[1732744507541,7.98775988,239.85,239.77,7.98775988]
[1732744507865,7.98775988,239.86,239.77,59.48775988]
[1732744510968,7.98775988,239.86,239.77,51.5]
[1732744511263,7.98775988,239.87,239.78,8.81949187]
[1732744511843,7.98775988,239.87,239.78,60.31949187]